Cogmind - Beta 9.4 @@@ ROGUE MODE // 2020.01.13 @ 17:10:26 Player: OccultOnion Result: Destroyed by S-10 Pest with Light Assault Rifle Performance ------------- Evolutions (0) 0 Regions Visited (2) 400 Robots Destroyed (1) 5 Value Destroyed (7) 7 Prototype IDs (0) 0 Alien Tech Used (0) 0 Bonus (-15) -15 TOTAL SCORE: 397 Bonus ------- Friendly Fire -15 Cogmind --------- Core Integrity 0/250 Matter 213/300 Energy 246/250 System Corruption 0% Temperature Cool (6) Movement Treading (160) Location -10/Mines Parts ------- > --- POWER (1) -------- Ion Engine > --- PROPULSION (2) --- Light Treads Light Treads > --- UTILITY (2) ------ Small Storage Unit Sensor Array > --- WEAPON (2) ------- Mining Laser > --- INVENTORY (6) ---- Seismic Analyzer Peak State ------------ > --- POWER ------------ Light Ion Engine > --- PROPULSION ------- Aluminum Leg Aluminum Leg > --- UTILITY ---------- Small Storage Unit Improved Terrain Scanner > --- WEAPON ----------- EM Pulse Gun Medium Laser > --- INVENTORY -------- Ion Engine Light Treads Light Treads Assault Rifle [Rating: 8] Favorites ----------- Power Light Ion Engine Engine Light Ion Engine Propulsion Aluminum Leg Treads Light Treads Leg Aluminum Leg Utility Small Storage Unit Device Sensor Array Storage Small Storage Unit Weapon Mining Laser Energy Gun EM Pulse Gun Ballistic Gun Assault Rifle Special Weapon Mining Laser Build | -11 -10 -10 ------- Run | Scr Mat Min Slots Evolved . | . . . Power . | . . . Propulsion . | . . . Utility . | . . . Weapon . | . . . Parts Attached 13 | 7 . 6 Power 2 | 1 . 1 Engine 2 | 1 . 1 Core . | . . . Reactor . | . . . Propulsion 4 | 2 . 2 Treads 2 | . . 2 Leg 2 | 2 . . Wheel . | . . . Hover . | . . . Flight . | . . . Utility 3 | 2 . 1 Device 2 | 1 . 1 Storage 1 | 1 . . Processor . | . . . Hackware . | . . . Protection . | . . . Artifact . | . . . Weapon 4 | 2 . 2 Energy Gun 2 | 2 . . Energy Cannon . | . . . Ballistic Gun 1 | . . 1 Ballistic Cannon . | . . . Launcher . | . . . Special Weapon 1 | . . 1 Impact Weapon . | . . . Slashing Weapon . | . . . Piercing Weapon . | . . . Special Melee Weapon . | . . . Unidentified Prototypes . | . . . Parts Lost 7 | . . 7 Power 1 | . . 1 Propulsion 2 | . . 2 Utility 1 | . . 1 Weapon 3 | . . 3 Highest Loss Streak 6 | . . 6 Average Slot Usage (%) 56 | . 100 51 Engine 7 | . 14 6 Treads 8 | . . 9 Leg 6 | . 28 3 Device 7 | . 14 6 Storage 14 | . 14 14 Energy Gun 4 | . 28 2 Ballistic Gun 2 | . . 2 Special Weapon 5 | . . 5 Naked Turns . | . . . Heaviest Build 12 | 12 12 12 Greatest Support 40 | 20 20 40 Greatest Overweight (x) 1 | . . 1 Average Overweight (x) . | . . . Largest Inventory Capacity 6 | 6 6 6 Average Capacity 5 | 5 6 6 Most Carried 6 | 5 6 6 Average Carried 3 | 2 5 3 Final Capacity 6 | 6 6 6 Final Carried 6 | 5 6 1 Class Distribution -------------------- 100% | Mutant Dominant Class ---------------- Mutant | -10/Materials Mutant | -10/Mines Resources | -11 -10 -10 ----------- Run | Scr Mat Min Matter Collected 226 | 149 77 . Remotely . | . . . Salvage Created 29 | 29 . . Parts 4 | 4 . . Haulers Intercepted . | . . . Recyclers Shooed . | . . . Parts Field Recycled . | . . . Retrieved Matter . | . . . Parts Self-Destructed . | . . . Prevented . | . . . Kills | -11 -10 -10 ------- Run | Scr Mat Min Combat Hostiles Destroyed . | . . . Classes Destroyed 1 | 1 . . Tunneler 1 | 1 . . Best Kill Streak 1 | 1 . . Combat Bots Only . | . . . Max Kills in Single Turn 1 | 1 . . Gunslinging . | . . . Exploded . | . . . Melee . | . . . Uniques/NPCs Destroyed . | . . . Combat | -11 -10 -10 -------- Run | Scr Mat Min Damage Taken 796 | . . 796 Core 253 | . . 253 Absorbed by Shields . | . . . Core Remaining (%) 100 | 100 . . Volleys Fired 22 | 1 . 21 Largest 2 | 2 . 2 Hottest 100 | 90 . 100 Shots Fired 24 | 2 . 22 Gun 11 | 2 . 9 Cannon . | . . . Launcher . | . . . Special 13 | . . 13 Kinetic 6 | . . 6 Thermal 15 | 1 . 14 Explosive . | . . . Electromagnetic 3 | 1 . 2 Robot Hit Streak 2 | 2 . 2 Robot Miss Streak 2 | . . 2 Penetration Max . | . . . Secondary Targets . | . . . Shots Hit Robots 5 | 2 . 3 Core Hits 2 | 1 . 1 Critical Hits . | . . . Critical Kills . | . . . Critical Parts Destroyed . | . . . Melee Attacks . | . . . Impact . | . . . Slashing . | . . . Piercing . | . . . Sneak Attacks . | . . . Combat Hostiles . | . . . Follow-up Attacks . | . . . Damage Inflicted 73 | 25 . 48 Guns 73 | 25 . 48 Cannons . | . . . Explosions . | . . . Melee . | . . . Ramming . | . . . Kinetic 25 | . . 25 Thermal 13 | 13 . . Explosive . | . . . Electromagnetic 35 | 12 . 23 Impact . | . . . Slashing . | . . . Piercing . | . . . Highest Corruption . | . . . Average Corruption . | . . . Corruption Purged . | . . . Overload Shots . | . . . Overflow Damage . | . . . Projectiles . | . . . Explosions . | . . . Melee . | . . . Knockbacks . | . . . Impact . | . . . Kinetic . | . . . Secondary . | . . . Self-Inflicted Damage . | . . . Shots . | . . . Rammed . | . . . Targets Rammed . | . . . Kicked . | . . . Crushed . | . . . Highest Temperature 42 | 30 . 42 Average Temperature 13 | 18 . 13 Received Heat Transfer 200 | . . 200 Siege Activations . | . . . Robots Corrupted . | . . . Combat Hostiles . | . . . Parts Fried . | . . . Impact Corruptions . | . . . Robots Melted . | . . . Combat Hostiles . | . . . Parts Melted . | . . . Heat Transferred 37 | 37 . . Parts Sabotaged . | . . . Parts Stolen . | . . . Parts Stripped . | . . . Power Chain Reactions . | . . . Missiles Intercepted . | . . . Alert | -11 -10 -10 ------- Run | Scr Mat Min Peak Influence 5 | 5 3 . Average Influence . | 1 3 . Maximum Alert Level . | . . . Low Security (%) 100 | 100 100 100 Level 1 . | . . . Level 2 . | . . . Level 3 . | . . . Level 4 . | . . . Level 5 . | . . . High Security . | . . . Max Security . | . . . Squads Dispatched . | . . . Investigation . | . . . Extermination . | . . . Reinforcement . | . . . Assault . | . . . Garrison . | . . . Intercept . | . . . Construction Impeded . | . . . Haulers Reinforced . | . . . Stealth | -11 -10 -10 --------- Run | Scr Mat Min Distress Signals . | . . . Communications Jammed . | . . . Distress Signals . | . . . Times Spotted 19 | . . 19 Peak Tracking Total 14 | . . 14 Tactical Retreats 5 | . . 5 Traps | -11 -10 -10 ------- Run | Scr Mat Min Traps Triggered . | . . . Indirectly . | . . . Trap Hack Attempts . | . . . Triggered . | . . . Disarmed . | . . . Reprogrammed . | . . . Reused . | . . . Traps Extracted . | . . . Installed . | . . . Triggered . | . . . Machines | -11 -10 -10 ---------- Run | Scr Mat Min Machines Disabled . | . . . Max in Single Turn . | . . . Machines Sabotaged . | . . . Garrisons Compromised . | . . . Overloaded Fab Kills . | . . . Fab Network Shutdowns . | . . . Hacking | -11 -10 -10 --------- Run | Scr Mat Min Machines Accessed . | . . . Terminals . | . . . Fabricators . | . . . Repair Stations . | . . . Recycling Units . | . . . Scanalyzers . | . . . Garrison Access . | . . . Total Hacks . | . . . Successful . | . . . Failed . | . . . Catastrophic . | . . . Database Lockouts . | . . . Manual . | . . . Terminals . | . . . Fabricators . | . . . Repair Stations . | . . . Recycling Units . | . . . Scanalyzers . | . . . Garrison Access . | . . . Terminal Hacks . | . . . Fabricator Hacks . | . . . Repair Station Hacks . | . . . Recycling Unit Hacks . | . . . Scanalyzer . | . . . Garrison Access Hacks . | . . . Unauthorized Hacks . | . . . Terminals . | . . . Fabricators . | . . . Repair Stations . | . . . Recycling Units . | . . . Scanalyzers . | . . . Garrison Access . | . . . Data Cores Recovered . | . . . Used . | . . . Hacking Detections . | . . . Full Trace Events . | . . . Feedback Events . | . . . Feedback Blocked . | . . . Robot Schematics Acquired . | . . . Robots Built . | . . . Matter . | . . . Time . | . . . Total Robot Build Rating . | . . . Part Schematics Acquired . | . . . Parts Built . | . . . Matter . | . . . Time . | . . . Total Part Build Rating . | . . . Parts Repaired . | . . . Time . | . . . Parts Recycled . | . . . Recycled Matter . | . . . Retrieved Matter . | . . . Retrieved Components . | . . . Parts Scanalyzed . | . . . Part Schematics Acquired . | . . . Parts Damaged . | . . . Bothacking | -11 -10 -10 ------------ Run | Scr Mat Min Used RIF Installer . | . . . Robots Hacked . | . . . Non-combat . | . . . Combat . | . . . Robot Hacks Applied . | . . . Relay Couplers Released . | . . . Robots Rewired . | . . . Allies Hacked . | . . . Hacks Repelled . | . . . Allies | -11 -10 -10 -------- Run | Scr Mat Min Total Allies 1 | . . 1 Largest Group 1 | . . 1 Highest-Rated Group 31 | . . 31 Highest-Rated Ally 31 | . . 31 Total Orders . | . . . Ally Attacks 2 | . . 2 Total Damage . | . . . Kills . | . . . Allies Corrupted . | . . . Allies Melted . | . . . Intel | -11 -10 -10 ------- Run | Scr Mat Min Robot Analysis Total . | . . . Derelict Logs Recovered . | . . . Drone Launches . | . . . Drone Recoveries . | . . . Exploration | -11 -10 -10 ------------- Run | Scr Mat Min Turns Passed 441 | 69 45 327 Spaces Moved 305 | 46 36 223 Core 168 | 10 . 158 Treads 35 | . . 35 Legs 102 | 36 36 30 Wheels . | . . . Hover . | . . . Flight . | . . . Fastest Speed 50 | 50 120 100 Average Speed 111 | 104 120 112 Slowest Speed 160 | 120 120 160 Overloaded Moves . | . . . Propulsion Burnouts . | . . . Robots Hopped . | . . . Cave-ins Triggered . | . . . Exploration Rate (%) 18 | 3 9 43 Regions Visited 2 Branch Regions 1 Pre-discovered Areas . | . . . Known Exits Taken . | . . . Unknown Exits Taken 2 | 1 1 . Scrap Searched . | . . . Spaces Dug 13 | . . 13 Terrain Destroyed 13 | . . 13 Melee . | . . . Projectile 13 | . . 13 AOE . | . . . Actions | -11 -10 -10 --------- Run | Scr Mat Min Total 356 | 65 38 253 Wait 2 | . . 2 Move 303 | 45 35 223 Hop . | . . . Pick Up 15 | 12 2 1 Fast Attach . | . . . Attach 13 | 7 . 6 Detach . | . . . Swap . | . . . Drop 1 | . 1 . Fire 22 | 1 . 21 Melee . | . . . Ram . | . . . Kick . | . . . Crush . | . . . Escape Stasis . | . . . Rewire . | . . . Trap . | . . . Miscellaneous . | . . . Route ------- -11/Scrapyard -10/Materials -10/Mines History --------- Turn | Location | Event 5 | -11/Scrapyard | Discovered new exit (range 14) 70 | -11/Scrapyard | Entered Materials 80 | -10/Materials | Discovered new exit (range 14) 115 | -10/Materials | Entered Mines 116 | -10/Mines | Assembled infested the area 121 | -10/Mines | Assisted by a Guerilla fighting off Assembled 186 | -10/Mines | Lost 6 parts (1p2n1u2w) 213 | -10/Mines | Found a hidden stash of uninstalled traps 230 | -10/Mines | Core integrity fell below 50% 247 | -10/Mines | Core integrity fell below 20% 299 | -10/Mines | Received a Mining Laser from a helpful Derelict 305 | -10/Mines | Build established: Mutant 442 | -10/Mines | Destroyed by S-10 Pest with Light Assault Rifle Last Messages --------------- 00155_ Aluminum Leg destroyed. 00159_ as-34546 destroyed. 00177_ Destroyed Asb. F-torch. [Achievement: Slippery One] 00213_ A stash of uninstalled traps is hidden here! 00229_ YI-UF0 mumbles something. 00241_ Assault Rifle destroyed. 00241_ Laser Drill disabled. 00258_ The unstable cave ceiling collapses. 00296_ A derelict emerges from the shadows: "What are you doing alone down here?" 00299_ O6-N6F(g): "And why aren't you carrying a mining laser?! Certainly you don't want THEM to uncover you when the ceiling comes crashing down? Here, take my spare." 00301_ Acquired Mining Laser. 00302_ O6-N6F(g): "You're apparently new around these parts, I'll cover you." 00304_ O6-N6F(g): "Mining lasers are a lot more useful than you might think..." 00437_ The unstable cave ceiling collapses. Map ----- +----------------------------------------------------+ | ??# ####?????????????????????????????????????????? | | ??# #??#####??????????????????????????????????? | | ??# #??# ##?????????????????????????????????? | | ??### #??# #?????????????????????????????????? | | ????# #??# #?????????????????????????????????? | | ????# ##### ##????????????????????????????????? | | ????# ##????###????????????????????????? | | #???# ##?## ##???????????????????????? | | ##??######### ### #???????????????????????? | | #?????????## #???????????????????????? | | #???###???# ##???????????????????????? | | ##### #???# ######????????????????????????? | | ## #???# #####????????????????????????????? | | # ##?## #" #????????????????????????????? | | # ### #####????????????????????????????? | | # ## #????????????????????????????? | | ## ## #????????????????????????????? | | ### ## #????????????????????????????? | | ###" # ####"#####????????????????????????? | | ##?# ###??????????????????????? | | "" ### # #??????????????????????? | | ## #??????????????????????? | | #### ##### ##??????????????????????? | | #?# # #???##;;#??????????????????????? | | #?### ###????##g########???????????????? | | #### # #?????# @ % s"""???????????? | | ## ## ##?????# #########???????????????? | | # # #??????# #???????????????????????? | | ##??????# #???????????????????????? | | ####?????# #########???????????????? | | % ##????# ## #???????????????? | | # ###"## ## #??#????????????? | | # %% #???????????????? | | # #### ## #???????????????? | | ##?# #??? ## #???????????????? | | ## ##???## #?? #########???????????????? | | ## ##?????## ? ???????????????????????? | | ## #???????### ???????????????????????? | | ### ?????????## #???????????????????????? | | #?###??????????###### ##???????????????????????? | | ##??????????????????? #????????????????????????? | | &#??????????????????? #????????????????????????? | | &&#??????????????????? $#????????????????????????? | | #??????#???????????? ?????????????????????????? | | #?????????????????? ?????????????????????????? | | #?????????????????? ?????????????????????????? | | #?????????????????? ??????????????????????????? | | ##??????????????????##?? ???????????????????????? | | ##???????????????????????????????????????????????? | | ?????????????????????????????????????????????????? | +----------------------------------------------------+ Best States ------------- Heat Dissipation 25 Energy Generation 10 Energy Capacity 250 Matter Stores 286 Matter Capacity 300 Sight Range 16 Robot Scan Range 10 Terrain Scan Range 16 Terrain Scan Density 10 Evasion (%) 40 Recoil Reduction 2 Item Schematics ----------------- None Robot Schematics ------------------ None Fabricated ------------ Nothing Alien Tech Used ----------------- None Achievements -------------- Slippery One Challenges ------------ None Game ------ Seed ContainmentXenonCloak Manual? 0 Play Time 00:08:36 Cumulative 26.6 hours Start 2020.01.13 @ 17:05:22 End 2020.01.13 @ 17:10:26 Sessions 1 Manual Loads 0 Difficulty Rogue Special Mode None Game No. 66 Rogue 66 Adventurer 0 Explorer 0 Win Type - Total 0 Types 0/0/0/0/0/0/0 Lore% 18 Gallery% 35 Achievement% 23 Wizard Run 0 Options --------- ASCII 0 Keyboard 0 Movement Numpad Keybinds 0 Fullscreen 1 Font 18/SmallcapsGlow Map View 76x50 Tactical HUD 1 Map Filters NONE Filters NONE Steam 1 RUN: c53b9c04-e89c-4068-a50d-73238d4c21b8